bitfinex/quotes_SOLUSD_20250611
["timestamp","ask_amount","ask_price","bid_price","bid_amount"]
[1749613902760,5.94,167.04,166.99,26.0]
[1749613902943,16.01956611,167.04,167.0,2.17237989]
[1749613903140,16.01956611,167.04,167.01,2.17237989]
[1749613903348,10.07956611,167.03,167.02,2.17178084]
[1749613903737,10.07956611,167.03,166.99,26.0]
[1749613903939,10.07956611,167.03,167.0,2.17167106]
[1749613904159,5.94,167.04,167.01,2.17167106]
[1749613904457,5.94,167.04,167.02,2.17167106]
[1749613904667,5.94,167.04,167.01,10.07956611]
[1749613904971,5.94,167.04,167.02,2.17162996]
[1749613905264,5.94,167.04,167.0,10.07956611]
[1749613905467,5.94,167.04,167.01,2.17133083]
[1749613905772,5.94,167.04,167.02,2.17129961]
[1749613905952,5.94,167.04,167.0,10.07956611]
[1749613906260,5.94,167.04,167.01,2.17115669]
[1749613906463,5.94,167.04,167.02,2.17115669]
[1749613906666,5.94,167.04,167.0,10.07956611]
[1749613906867,5.94,167.04,167.02,26.0]
[1749613907052,5.94,167.04,167.03,2.17068666]
[1749613907367,5.94,167.04,167.02,36.07956611]
[1749613907546,5.94,167.04,167.03,2.1720306]
[1749613908455,10.07956611,167.07,167.02,36.07956611]
[1749613908855,10.07956611,167.07,167.03,2.17407287]
[1749613909159,10.07956611,167.07,167.04,2.17404995]
[1749613909353,10.07956611,167.07,167.05,2.1747096]
[1749613909559,10.07956611,167.07,167.06,2.1747096]
[1749613909742,10.07956611,167.07,167.03,2.1747096]
[1749613909940,10.07956611,167.07,167.04,2.1747096]
[1749613910263,10.07956611,167.06,167.05,2.1747096]
[1749613910445,10.07956611,167.06,167.05,2.17651648]
[1749613910651,10.07956611,167.06,167.02,2.17671369]
[1749613910842,10.07956611,167.06,167.01,10.07956611]
[1749613911147,10.07956611,167.07,167.02,12.25639333]
[1749613911348,10.07956611,167.07,167.03,2.17682722]
[1749613911559,10.07956611,167.07,167.04,2.17682722]
[1749613911759,10.07956611,167.07,167.05,2.17682722]
[1749613911943,10.07956611,167.07,167.06,2.17682722]
[1749613912145,10.07956611,167.07,167.06,2.17658354]
[1749613912346,10.07956611,167.07,167.02,10.07956611]
[1749613912554,10.07956611,167.07,167.01,10.07956611]
[1749613912761,10.07956611,167.06,167.02,2.17663508]
[1749613912951,10.07956611,167.06,167.03,2.17663508]
[1749613913160,10.07956611,167.06,167.04,2.17663508]
[1749613913376,10.07956611,167.06,167.01,10.07956611]
[1749613914263,10.07956611,167.04,167.0,115.9]
[1749613914865,10.07956611,167.04,167.01,2.17721744]
[1749613915180,5.94,167.09,167.01,2.17721744]
[1749613915181,10.07956611,167.03,167.01,2.17721744]
[1749613915394,10.07956611,167.03,167.01,28.17721744]
[1749613916769,10.07956611,167.04,167.02,26.0]
[1749613916973,10.07956611,167.04,167.03,2.17745082]
[1749613917564,10.07956611,167.04,167.03,2.17777385]
[1749613918173,10.07956611,167.04,167.02,26.0]
[1749613918489,10.07956611,167.04,167.03,2.17743419]
[1749613919455,10.07956611,167.04,167.03,2.17705599]
[1749613919761,10.07956611,167.04,167.02,26.0]
[1749613919965,10.07956611,167.04,167.03,2.17729676]
[1749613921278,10.07956611,167.04,167.03,2.17763454]
[1749613921487,10.07956611,167.04,167.02,26.0]
[1749613921655,10.07956611,167.04,167.03,2.177827]
[1749613922072,10.07956611,167.05,167.03,2.177827]
[1749613922262,10.07956611,167.05,167.04,2.177827]
[1749613922462,10.07956611,167.05,167.03,28.177827]
[1749613922663,5.92,167.06,167.04,2.177827]
[1749613922861,5.92,167.06,167.05,2.177827]
[1749613923054,5.92,167.06,167.05,2.1777618]
[1749613923261,5.92,167.06,167.03,36.07956611]
[1749613923491,5.92,167.06,167.04,12.25713696]
[1749613923678,5.92,167.06,167.05,2.17756938]
[1749613924764,5.92,167.06,167.05,38.25713549]
[1749613924970,5.92,167.06,167.05,36.07956611]
[1749613925172,5.92,167.06,167.05,28.17670745]
[1749613925375,15.99956611,167.06,167.05,2.17704597]
[1749613925676,15.99956611,167.06,167.04,26.0]
[1749613925865,15.99956611,167.06,167.05,2.17765044]
[1749613926063,15.99956611,167.06,167.01,10.07956611]
[1749613926284,15.99956611,167.06,167.04,26.0]
[1749613926586,15.99956611,167.06,167.05,2.17807031]
[1749613926786,5.92,167.06,167.05,2.17797745]
[1749613926964,15.99956611,167.06,167.05,2.17797745]
[1749613927318,5.92,167.06,167.05,2.17797745]
[1749613928279,5.92,167.06,167.05,2.17514713]
[1749613928761,10.07956611,167.09,167.05,2.17474213]
[1749613929090,10.07956611,167.09,167.06,2.1746714]
[1749613929290,5.8,167.1,167.05,26.0]
[1749613929594,5.8,167.1,167.06,12.25400789]
[1749613929887,5.8,167.1,167.07,2.17444178]
[1749613930090,5.8,167.1,167.08,2.17444178]
[1749613930382,5.8,167.1,167.09,2.17444178]
[1749613930688,10.07956611,167.12,167.09,2.17354306]
[1749613930874,10.07956611,167.12,167.07,10.07956611]
[1749613930875,10.07956611,167.12,167.1,2.17354248]
[1749613931093,10.07956611,167.12,167.11,2.17356822]
[1749613931296,5.8,167.15,167.11,2.17356682]
[1749613931505,10.07956611,167.14,167.08,10.07956611]
[1749613931679,10.07956611,167.13,167.09,2.17327435]
[1749613931879,10.07956611,167.13,167.08,36.07956611]
[1749613931880,10.07956611,167.13,167.1,2.1731595]
[1749613932100,10.07956611,167.13,167.11,2.17315446]
[1749613932407,5.8,167.15,167.08,26.0]
[1749613932580,10.07956611,167.13,167.09,2.17310928]
[1749613932786,5.8,167.15,167.09,10.07956611]
[1749613933011,10.07956611,167.14,167.09,10.07956611]
[1749613933507,10.07956611,167.14,167.1,2.17310798]
[1749613933676,10.07956611,167.14,167.11,2.17332066]
[1749613934008,10.07956611,167.13,167.08,36.07956611]
[1749613934182,10.07956611,167.13,167.09,2.1714456]
[1749613934383,10.07956611,167.13,167.1,2.17144432]
[1749613934587,10.07956611,167.13,167.11,2.17144381]
[1749613934785,5.8,167.15,167.08,36.07956611]
[1749613934987,5.8,167.15,167.11,36.07956611]
[1749613935199,5.8,167.15,167.14,10.07956611]
[1749613935387,5.8,167.15,167.14,2.17105453]
[1749613935584,5.8,167.15,167.14,28.17105453]
[1749613935914,5.8,167.15,167.14,26.0]
[1749613936386,5.8,167.15,167.14,28.16893447]
[1749613936586,5.8,167.15,167.14,28.17073563]
[1749613937789,15.87956611,167.15,167.14,2.17073563]
[1749613937991,15.87956611,167.15,167.14,2.16594912]
[1749613938306,15.87956611,167.15,167.14,2.1659291]
[1749613938307,5.8,167.15,167.14,2.1659291]
[1749613938602,5.8,167.15,167.13,2.16606754]
[1749613938809,5.8,167.15,167.14,2.16606754]
[1749613940008,5.8,167.15,167.14,2.16474097]
[1749613941198,5.8,167.15,167.14,2.16241088]
[1749613941399,5.8,167.15,167.14,2.16225096]
[1749613941595,5.8,167.15,167.13,26.0]
[1749613941805,5.8,167.15,167.13,125.97956611]
[1749613942010,10.07956611,167.23,167.17,26.0]
[1749613942213,10.07956611,167.19,167.18,2.16212287]
[1749613942417,10.07956611,167.2,167.18,28.16177595]
[1749613942612,10.07956611,167.19,167.14,26.0]
[1749613942811,0.14216157,167.23,167.11,50.33174886]
[1749613942812,10.07956611,167.17,167.15,28.16194858]
[1749613942993,10.07956611,167.17,167.16,2.16194858]
[1749613943492,10.07956611,167.17,167.16,2.16171767]
[1749613943695,10.07956611,167.17,167.16,2.16185188]
[1749613943897,10.07956611,167.17,167.15,26.0]
[1749613945189,10.07956611,167.18,167.16,26.0]
[1749613945389,0.14216157,167.23,167.16,26.0]
[1749613945590,10.07956611,167.18,167.16,26.0]
[1749613947998,10.07956611,167.17,167.14,26.0]
[1749613948300,10.07956611,167.16,167.14,26.0]
[1749613948497,10.07956611,167.16,167.15,2.15941329]
[1749613949900,0.14216157,167.24,167.16,26.0]
[1749613950103,10.07956611,167.2,167.16,26.0]
[1749613950305,10.07956611,167.21,167.16,36.07956611]
[1749613950513,10.07956611,167.23,167.18,26.0]
[1749613950825,10.07956611,167.23,167.18,36.07956611]
[1749613951007,10.07956611,167.23,167.18,26.0]
[1749613951332,10.07956611,167.23,167.18,36.07956611]
[1749613951524,10.07956611,167.23,167.18,26.0]
[1749613952030,1.5519,167.25,167.18,26.0]
[1749613952031,10.07956611,167.22,167.18,26.0]
[1749613952207,1.5519,167.25,167.18,36.07956611]
[1749613952408,10.07956611,167.23,167.19,2.156446]
[1749613952617,10.07956611,167.22,167.18,26.0]
[1749613952811,10.07956611,167.22,167.19,2.15641814]
[1749613953129,1.5519,167.25,167.2,2.15591148]
[1749613953326,1.5519,167.25,167.18,36.07956611]
[1749613953327,10.07956611,167.23,167.18,36.07956611]
[1749613953515,10.07956611,167.23,167.19,2.15591246]
[1749613953716,10.07956611,167.23,167.2,2.15591116]
[1749613953932,26.44,167.26,167.19,10.07956611]
[1749613954141,26.44,167.26,167.18,26.0]
[1749613954427,10.07956611,167.19,167.13,89.9]
[1749613954638,10.07956611,167.17,167.14,2.15571962]
[1749613954806,10.07956611,167.17,167.15,2.15571962]
[1749613955005,10.07956611,167.17,167.15,26.0]
[1749613955306,10.07956611,167.17,167.1,43.96964886]
[1749613955521,10.07956611,167.17,167.13,2.15646296]
[1749613955715,10.07956611,167.17,167.15,26.0]
[1749613957106,10.07956611,167.17,167.13,26.0]
[1749613957425,10.07956611,167.17,167.15,26.0]
[1749613957826,5.78,167.2,167.07,24.44791253]
[1749613957827,6.33506157,167.19,167.07,24.44791253]
[1749613958013,10.07956611,167.14,167.09,10.07956611]
[1749613958218,6.33506157,167.19,167.12,26.0]
[1749613958416,10.07956611,167.15,167.12,26.0]
[1749613959011,10.07956611,167.16,167.11,10.07956611]
[1749613959330,10.07956611,167.16,167.12,2.15880186]
[1749613959634,10.07956611,167.16,167.11,10.07956611]
[1749613959810,10.07956611,167.16,167.12,2.15922741]
[1749613960010,10.07956611,167.16,167.11,10.07956611]
[1749613960211,10.07956611,167.16,167.12,2.15948225]
[1749613960410,10.07956611,167.16,167.13,2.15892152]
[1749613960612,10.07956611,167.15,167.11,26.0]
[1749613961026,10.07956611,167.15,167.12,2.15975779]
[1749613961343,10.07956611,167.15,167.11,26.0]
[1749613961525,10.07956611,167.15,167.12,2.15900492]
[1749613961712,10.07956611,167.15,167.11,26.0]
[1749613961914,10.07956611,167.16,167.12,2.15887961]
[1749613962114,10.07956611,167.16,167.11,36.07956611]
[1749613962348,10.07956611,167.15,167.12,2.16027363]
[1749613962539,10.07956611,167.15,167.11,26.0]
[1749613962830,10.07956611,167.15,167.12,2.16025591]
[1749613963044,10.07956611,167.15,167.11,26.0]
[1749613963240,10.07956611,167.15,167.12,2.16018755]
[1749613963415,10.07956611,167.15,167.11,26.0]
[1749613963611,10.07956611,167.15,167.12,2.16018763]
[1749613963909,10.07956611,167.15,167.11,26.0]
[1749613964109,10.07956611,167.15,167.12,2.16018793]
[1749613964312,10.07956611,167.15,167.11,26.0]
[1749613964511,10.07956611,167.15,167.12,2.16020384]
[1749613964721,10.07956611,167.15,167.11,26.0]
[1749613964928,10.07956611,167.15,167.12,2.16019852]
[1749613965137,10.07956611,167.15,167.13,2.16073912]
[1749613965440,10.07956611,167.15,167.11,26.0]
[1749613965734,1.53,167.16,167.11,26.0]
[1749613965911,10.07956611,167.12,167.11,26.0]
[1749613966116,10.07956611,167.13,167.11,28.16198674]
[1749613966316,10.07956611,167.13,167.11,26.0]
[1749613966510,10.07956611,167.12,167.07,18.13289963]
[1749613966717,10.07956611,167.11,167.09,26.0]
[1749613967036,10.07956611,167.12,167.1,2.16225102]
[1749613967611,10.07956611,167.12,167.11,2.16465363]
[1749613967812,1.53,167.16,167.09,26.0]
[1749613967813,1.53,167.16,167.1,28.16490323]
[1749613968036,27.53,167.16,167.11,2.16469492]
[1749613968209,10.07956611,167.12,167.06,26.0]
[1749613968415,10.07956611,167.1,167.07,2.1651187]
[1749613968616,10.07956611,167.1,167.08,2.1651187]
[1749613968821,10.07956611,167.1,167.09,2.1651187]
[1749613969230,10.07956611,167.1,167.03,8.05333352]
[1749613969231,10.07956611,167.1,167.04,10.07956611]
[1749613969427,10.07956611,167.09,167.05,2.16711523]
[1749613969637,7.31,167.16,167.11,26.0]
[1749613969844,5.78,167.16,167.12,12.24487713]
[1749613970149,5.78,167.16,167.13,2.16501084]
[1749613970444,5.78,167.16,167.14,2.16545169]
[1749613970654,5.78,167.16,167.15,2.16727788]
[1749613971324,5.78,167.16,167.15,2.16719125]
[1749613971549,15.85956611,167.16,167.11,36.07956611]
[1749613971751,15.85956611,167.16,167.12,2.16737351]
[1749613971946,15.85956611,167.16,167.13,2.16733522]
[1749613972243,15.85956611,167.16,167.14,2.16733522]
[1749613972452,15.85956611,167.16,167.15,2.16733522]
[1749613972744,15.85956611,167.16,167.12,2.16733522]
[1749613972945,5.78,167.16,167.15,26.0]
[1749613973334,5.78,167.16,167.15,28.17153056]
[1749613973537,5.78,167.16,167.15,28.17160222]
[1749613973739,5.78,167.16,167.15,28.17154877]
[1749613974948,5.78,167.16,167.15,26.0]
[1749613975157,5.78,167.16,167.15,28.17302315]
[1749613975462,5.78,167.16,167.15,38.2521072]
[1749613975751,5.78,167.16,167.15,54.72921497]
[1749613975930,10.07956611,167.22,167.16,18.64964886]
[1749613976136,10.07956611,167.22,167.19,26.0]
[1749613976339,6.6146,167.23,167.2,2.1717619]
[1749613976644,10.07956611,167.21,167.17,26.0]
[1749613976843,10.07956611,167.19,167.18,2.17209317]
[1749613977157,10.07956611,167.2,167.18,2.17209597]
[1749613977363,10.07956611,167.2,167.19,2.17209597]
[1749613977858,10.07956611,167.2,167.19,2.17190458]
[1749613978536,10.07956611,167.2,167.19,2.17178853]
[1749613978737,10.07956611,167.2,167.19,2.17189965]
[1749613978939,10.07956611,167.2,167.17,26.0]
[1749613979137,10.07956611,167.19,167.18,2.17314821]
[1749613980154,10.07956611,167.19,167.17,2.17356279]
[1749613980348,10.07956611,167.19,167.18,2.17353317]
[1749613980550,10.07956611,167.19,167.18,2.17357414]
[1749613981461,6.6146,167.23,167.18,2.17357414]
[1749613981658,10.07956611,167.21,167.19,2.17357414]
[1749613981841,10.07956611,167.2,167.16,10.07956611]
[1749613982039,10.07956611,167.2,167.17,2.17339697]
[1749613982267,10.07956611,167.2,167.15,125.97956611]
[1749613982561,10.07956611,167.2,167.16,2.17335338]
[1749613982869,10.07956611,167.2,167.17,2.17335338]
[1749613983162,10.07956611,167.2,167.18,2.17335338]
[1749613983339,10.07956611,167.2,167.19,2.17335338]
[1749613983741,10.07956611,167.21,167.19,2.17335338]
[1749613983965,10.07956611,167.21,167.18,26.0]
[1749613984140,10.07956611,167.21,167.19,2.17337829]
[1749613984345,10.07956611,167.21,167.18,26.0]
[1749613984548,10.07956611,167.2,167.19,2.17359329]
[1749613984748,10.07956611,167.2,167.19,2.17354175]
[1749613985457,10.07956611,167.21,167.19,2.17325948]
[1749613985645,10.07956611,167.21,167.2,2.17310352]
[1749613986052,10.07956611,167.21,167.2,2.17310583]
[1749613986259,10.07956611,167.21,167.2,2.17306391]
[1749613987260,10.07956611,167.21,167.16,2.17321281]
[1749613987449,10.07956611,167.21,167.17,2.17321803]
[1749613987757,10.07956611,167.21,167.18,2.17322969]
[1749613987958,10.07956611,167.21,167.16,10.07956611]
[1749613988262,10.07956611,167.2,167.17,2.17303721]
[1749613988463,10.07956611,167.2,167.18,2.17303721]
[1749613988750,10.07956611,167.2,167.15,125.97956611]
[1749613988968,10.07956611,167.2,167.16,2.17302516]
[1749613989158,10.07956611,167.2,167.17,2.17272137]
[1749613989358,10.07956611,167.2,167.18,2.17271045]
[1749613989560,10.07956611,167.2,167.15,125.97956611]
[1749613989949,10.07956611,167.2,167.16,2.1726734]
[1749613990171,10.07956611,167.2,167.17,2.1726734]
[1749613990470,0.14216157,167.22,167.18,2.1726734]
[1749613990665,18.79181043,167.22,167.1,91.4394]
[1749613990852,18.79181043,167.22,167.1,89.9]
[1749613991163,18.79181043,167.22,167.13,26.0]
[1749613991753,10.07956611,167.15,167.14,2.17386953]
[1749613992355,0.14216157,167.19,167.14,2.17386953]
[1749613992554,0.14216157,167.19,167.15,2.1740017]
[1749613992768,10.07956611,167.16,167.13,26.0]
[1749613993075,10.07956611,167.15,167.14,2.1740327]
[1749613993253,10.07956611,167.15,167.13,26.0]
[1749613993458,10.07956611,167.15,167.14,2.17404869]
[1749613994157,10.07956611,167.15,167.13,26.0]
[1749613994358,10.07956611,167.15,167.14,2.17379159]
[1749613994554,10.07956611,167.15,167.14,2.17382567]
[1749613994782,10.07956611,167.15,167.13,26.0]
[1749613994965,10.07956611,167.15,167.14,2.17388641]
[1749613995280,10.07956611,167.15,167.14,2.1738851]
[1749613995775,10.22172768,167.15,167.05,3.01470061]
[1749613995972,10.07956611,167.1,167.06,2.17534724]
[1749613996165,10.07956611,167.09,167.07,2.17608659]
[1749613996367,10.07956611,167.09,167.08,2.17664971]
[1749613996558,10.07956611,167.09,167.08,2.17664833]
[1749613996875,10.07956611,167.09,167.08,2.1769276]
[1749613997075,10.07956611,167.09,167.08,2.17705824]
[1749613997973,10.07956611,167.09,167.05,26.0]
[1749613998181,10.07956611,167.08,167.06,28.17708221]
[1749613998361,10.07956611,167.08,167.07,2.17711473]
[1749613998674,10.07956611,167.08,167.07,2.17711291]
[1749613998872,10.07956611,167.09,167.07,2.17711292]
[1749613999182,10.07956611,167.09,167.08,2.17711292]
[1749613999367,10.07956611,167.11,167.08,2.17711292]
[1749613999561,10.07956611,167.11,167.09,2.17711292]
[1749613999765,0.14216157,167.15,167.1,2.17711292]
[1749613999954,10.07956611,167.11,167.05,26.0]
[1749614000151,10.07956611,167.07,167.06,2.17629724]
[1749614000355,10.07956611,167.07,167.06,2.17699525]
[1749614000552,10.22172768,167.07,167.01,2.17712754]
[1749614000765,10.07956611,167.04,167.02,2.17712754]
[1749614000979,10.07956611,167.04,166.95,3.05887279]
[1749614001176,10.07956611,167.04,166.96,2.17337998]
[1749614001478,5.78,167.08,167.01,26.0]
[1749614001678,5.78,167.08,167.02,2.17200538]
[1749614001869,10.07956611,167.07,167.03,2.17196806]
[1749614002063,10.07956611,167.07,167.02,10.07956611]
[1749614002478,5.78,167.08,167.03,2.17176439]
[1749614002684,15.85956611,167.08,167.04,2.17139228]
[1749614002860,10.07956611,167.11,167.07,26.0]
[1749614003059,10.07956611,167.11,167.08,2.16923317]
[1749614003256,10.07956611,167.11,167.07,26.0]
[1749614003770,10.07956611,167.11,167.08,2.16874531]
[1749614003962,10.07956611,167.11,167.07,26.0]
[1749614003963,10.07956611,167.11,167.09,2.16872925]
[1749614004283,10.07956611,167.11,167.1,2.16872925]
[1749614004480,10.07956611,167.12,167.1,2.16872925]
[1749614004671,10.07956611,167.11,167.07,26.0]
[1749614004879,7.4096,167.14,167.07,26.0]
[1749614004880,7.4096,167.14,167.08,2.16850558]
[1749614005068,10.07956611,167.13,167.07,10.07956611]
[1749614005264,10.07956611,167.13,167.08,2.16851275]
[1749614005597,10.07956611,167.13,167.09,2.16851645]
[1749614005880,10.07956611,167.13,167.1,2.16811775]
[1749614006083,10.07956611,167.13,167.07,10.07956611]
[1749614006265,10.07956611,167.13,167.08,2.16789984]
[1749614006466,10.07956611,167.13,167.09,2.16789984]
[1749614006662,10.07956611,167.13,167.07,10.07956611]
[1749614006663,10.07956611,167.13,167.1,2.16789984]
[1749614006875,10.07956611,167.13,167.07,10.07956611]
[1749614007180,10.07956611,167.13,167.08,2.16696506]
[1749614007386,10.07956611,167.12,167.09,2.16696506]
[1749614007581,10.07956611,167.12,167.06,36.07956611]
[1749614007783,10.07956611,167.12,167.07,2.16726422]
[1749614007977,17.48916611,167.14,167.09,10.07956611]
[1749614008280,17.48916611,167.14,167.1,2.16677515]
[1749614008586,17.48916611,167.14,167.09,10.07956611]
[1749614009187,17.48916611,167.14,167.1,2.16663744]
[1749614009361,17.48916611,167.14,167.09,10.07956611]
[1749614009561,17.48916611,167.14,167.08,10.07956611]
[1749614009787,10.07956611,167.12,167.06,36.07956611]
[1749614009970,10.07956611,167.12,167.07,2.16745813]
[1749614010165,10.07956611,167.12,167.06,36.07956611]
[1749614010372,10.07956611,167.12,167.07,2.1677072]
[1749614010575,10.07956611,167.12,167.06,36.07956611]
[1749614010771,10.07956611,167.11,167.07,2.16797378]
[1749614011073,10.07956611,167.11,167.06,36.07956611]
[1749614011285,10.07956611,167.12,167.07,2.16798656]
[1749614011489,10.07956611,167.12,167.07,10.07956611]
[1749614011788,10.07956611,167.12,167.06,26.0]
[1749614012090,10.07956611,167.1,167.07,2.16733929]
[1749614012274,10.07956611,167.11,167.06,10.07956611]
[1749614012681,10.07956611,167.11,167.07,2.1666917]
[1749614012883,10.07956611,167.11,167.06,10.07956611]
[1749614013084,10.07956611,167.11,167.07,2.1663018]
[1749614013277,10.07956611,167.11,167.06,10.07956611]
[1749614013591,10.07956611,167.1,167.05,10.07956611]
[1749614014177,10.07956611,167.11,167.06,10.07956611]
[1749614015190,10.07956611,167.11,167.04,26.0]
[1749614015495,10.07956611,167.12,167.07,10.07956611]
[1749614020402,10.07956611,167.12,167.04,26.0]
[1749614020706,10.07956611,167.12,167.07,10.07956611]
[1749614023205,10.07956611,167.11,167.06,10.07956611]
[1749614023591,0.14216157,167.13,167.06,10.07956611]
[1749614023800,10.07956611,167.11,167.06,10.07956611]
[1749614024321,10.07956611,167.09,167.04,26.0]
[1749614024485,10.07956611,167.05,167.0,10.07956611]
[1749614024683,10.07956611,167.05,167.01,2.17450296]
[1749614025000,15.85956611,167.04,166.99,10.07956611]
[1749614025197,15.85956611,167.04,167.0,2.17517877]
[1749614025586,10.07956611,167.01,167.0,2.17517877]
[1749614025785,10.07956611,167.01,166.96,10.07956611]
[1749614026312,10.07956611,166.99,166.97,2.17713804]
[1749614026492,10.07956611,166.99,166.94,10.07956611]
[1749614026686,6.26456157,167.02,166.95,2.177307]
[1749614026888,10.07956611,166.99,166.96,2.177307]
[1749614027110,10.07956611,166.99,166.94,10.07956611]
[1749614027282,10.07956611,166.99,166.95,2.17436063]
[1749614027486,10.07956611,166.99,166.96,2.17451142]
[1749614027687,10.07956611,166.98,166.93,36.07956611]
[1749614028186,10.07956611,166.98,166.94,2.17497672]
[1749614028388,10.07956611,166.98,166.95,2.17497672]
[1749614028591,10.07956611,166.98,166.96,2.17497672]
[1749614028889,10.07956611,166.98,166.93,36.07956611]
[1749614029087,10.07956611,166.98,166.94,2.17218761]
[1749614029285,10.07956611,166.98,166.95,2.17232887]
[1749614029501,10.07956611,166.98,166.96,2.1721326]
[1749614029800,10.07956611,166.98,166.93,36.07956611]
[1749614030002,16.34412768,167.02,166.97,10.07956611]
[1749614030191,10.07956611,167.01,166.96,10.07956611]
[1749614030392,10.07956611,167.01,166.97,2.17237644]
[1749614030800,10.07956611,166.98,166.93,26.0]
[1749614031000,10.07956611,166.98,166.94,2.17307367]
[1749614031202,10.07956611,166.99,166.95,2.17292097]
[1749614031411,10.07956611,166.98,166.96,2.1730717]
[1749614031792,10.07956611,166.98,166.93,36.07956611]
[1749614031992,10.07956611,166.98,166.94,2.17312139]
[1749614032286,10.07956611,166.98,166.95,2.17312139]
[1749614032489,0.14216157,167.0,166.9,10.07956611]
[1749614032714,10.07956611,166.96,166.91,12.25363787]
[1749614032908,10.07956611,166.97,166.92,12.25347724]
[1749614033093,10.07956611,166.97,166.93,2.173949]
[1749614033294,10.07956611,166.97,166.94,2.17397012]
[1749614033513,10.07956611,166.97,166.95,2.17402073]
[1749614033710,10.07956611,166.98,166.93,10.07956611]
[1749614033912,10.07956611,166.99,166.94,12.25381692]
[1749614034110,10.07956611,166.99,166.95,2.17425081]
[1749614034408,5.78,167.0,166.96,2.17378816]
[1749614034710,10.07956611,166.99,166.97,2.17359008]
[1749614034895,10.07956611,166.99,166.94,10.07956611]
[1749614035090,10.07956611,166.99,166.95,2.17359008]
[1749614035295,10.07956611,166.99,166.96,2.17361253]
[1749614035501,15.85956611,167.0,166.97,2.17361253]
[1749614035715,15.85956611,167.0,166.95,10.07956611]
[1749614035912,15.85956611,167.0,166.96,2.17432628]
[1749614036111,15.85956611,167.0,166.97,2.17432498]
[1749614036297,15.85956611,167.0,166.95,10.07956611]
[1749614036617,15.85956611,167.0,166.96,2.17441527]
[1749614036821,15.85956611,167.0,166.97,2.17441297]
[1749614037112,15.85956611,167.0,166.95,10.07956611]
[1749614037422,15.85956611,167.0,166.96,2.17467137]
[1749614037617,15.85956611,167.0,166.92,10.07956611]
[1749614037618,10.07956611,166.97,166.92,10.07956611]
[1749614037914,10.07956611,166.95,166.9,10.07956611]
[1749614038117,0.14216157,166.98,166.89,10.07956611]
[1749614038118,10.07956611,166.94,166.89,10.07956611]
[1749614038420,0.14216157,166.98,166.89,10.07956611]
[1749614038625,10.07956611,166.95,166.9,36.07956611]
[1749614038926,10.07956611,166.95,166.91,2.17679154]
[1749614039106,10.07956611,166.95,166.9,36.07956611]
[1749614039799,10.07956611,166.95,166.9,26.0]
[1749614039994,0.14216157,166.98,166.91,2.17739703]
[1749614039995,10.07956611,166.94,166.91,2.17739703]
[1749614040222,10.07956611,166.92,166.91,2.17739703]
[1749614040518,10.07956611,166.93,166.88,10.07956611]
[1749614041316,10.07956611,166.93,166.91,2.17920177]
[1749614041617,10.07956611,166.93,166.92,2.17920177]
[1749614041922,10.07956611,166.93,166.89,2.17937859]
[1749614042107,10.07956611,166.93,166.9,2.17937859]
[1749614042305,10.07956611,166.93,166.91,2.17941169]
[1749614042505,10.07956611,166.93,166.92,2.17941169]
[1749614042709,10.07956611,166.93,166.92,2.17647237]
[1749614043222,10.07956611,166.93,166.92,2.17616749]
[1749614043415,10.07956611,166.93,166.92,2.17632167]
[1749614044325,10.07956611,166.93,166.92,2.17602542]
[1749614044540,10.07956611,166.93,166.88,10.07956611]
[1749614044702,10.07956611,166.91,166.84,8.0803]
[1749614045032,10.07956611,166.88,166.85,2.17687774]
[1749614045207,10.07956611,166.88,166.86,2.17756922]
[1749614045408,5.78,166.9,166.87,2.17756922]
[1749614045629,10.07956611,166.88,166.83,36.07956611]
[1749614045803,10.07956611,166.88,166.84,2.17432581]
[1749614046005,10.07956611,166.88,166.85,2.17471589]
[1749614046221,10.07956611,166.88,166.86,2.17394633]
[1749614046416,10.07956611,166.87,166.83,26.0]
[1749614046816,10.07956611,166.87,166.84,2.17393196]
[1749614047024,10.07956611,166.87,166.83,26.0]
[1749614047207,10.07956611,166.87,166.84,2.17391467]
[1749614047517,10.07956611,166.87,166.85,2.17391467]
[1749614047720,10.07956611,166.87,166.83,26.0]
[1749614047929,10.07956611,166.87,166.84,2.17398716]
[1749614048125,10.07956611,166.87,166.85,2.17399594]
[1749614048339,10.07956611,166.87,166.83,26.0]
[1749614048634,10.07956611,166.87,166.84,2.17395266]
[1749614048920,10.07956611,166.87,166.85,2.17395137]
[1749614049136,10.07956611,166.87,166.83,26.0]
[1749614049313,10.07956611,166.87,166.84,2.17065816]
[1749614049505,10.07956611,166.87,166.85,2.17128071]
[1749614049706,10.07956611,166.87,166.83,26.0]
[1749614049943,10.07956611,166.87,166.84,2.17131841]